bitfinex/quotes_SOLUSD_20250306
["timestamp","ask_amount","ask_price","bid_price","bid_amount"]
[1741288568110,6.5,143.84,143.8,0.033]
[1741288568567,6.9526,143.83,143.8,0.033]
[1741288568767,88.9526,143.83,143.8,0.033]
[1741288569204,82.0,143.82,143.8,0.033]
[1741288570697,6.9536,143.81,143.8,0.033]
[1741288572992,29.15649427,143.81,143.8,0.033]
[1741288575106,111.15649427,143.81,143.8,0.033]
[1741288575306,7.23792314,143.81,143.8,0.033]
[1741288575503,8.26105271,143.81,143.8,0.033]
[1741288575685,53.9852541,143.81,143.78,0.033]
[1741288575872,1.91212314,143.79,143.77,0.0001]
[1741288576200,7.82745271,143.78,143.72,0.033]
[1741288576496,6.117,143.76,143.72,0.033]
[1741288576690,0.28432314,143.74,143.65,0.033]
[1741288576907,0.28432314,143.72,143.65,0.033]
[1741288577270,0.28432314,143.7,143.65,0.033]
[1741288577599,22.00905746,143.69,143.65,0.033]
[1741288577773,22.00905746,143.69,143.66,0.14216157]
[1741288577974,22.00905746,143.69,143.65,82.133]
[1741288578203,20.0,143.64,143.63,0.033]
[1741288578369,20.0,143.64,143.58,10.90979172]
[1741288578370,0.28432314,143.63,143.58,10.90979172]
[1741288578575,7.82745271,143.63,143.58,10.90979172]
[1741288579201,21.71868629,143.62,143.58,10.90979172]
[1741288579502,6.9633,143.61,143.58,10.90979172]
[1741288579878,20.0,143.58,143.57,4.58e-05]
[1741288580082,0.28432314,143.57,143.56,38.70655818]
[1741288580498,0.28432314,143.57,143.53,10.91136835]
[1741288580802,82.0,143.56,143.53,10.91136835]
[1741288581375,6.9662,143.55,143.53,10.91136835]
[1741288581879,88.9657,143.56,143.53,10.91136835]
[1741288582291,82.0,143.56,143.53,10.91136835]
[1741288583107,88.9658,143.56,143.53,10.91136835]
[1741288583682,88.9658,143.56,143.53,0.033]
[1741288583895,82.0,143.55,143.53,0.033]
[1741288584491,19.24441809,143.57,143.53,0.033]
[1741288584798,27.23294766,143.57,143.53,0.033]
[1741288584999,82.28432314,143.56,143.53,0.033]
[1741288585203,1.02312957,143.55,143.53,0.033]
[1741288585404,82.28432314,143.56,143.53,0.033]
[1741288585786,82.0,143.56,143.53,0.033]
[1741288585979,82.0,143.55,143.53,0.033]
[1741288586205,6.80432314,143.54,143.53,0.033]
[1741288586583,13.77092314,143.54,143.53,0.033]
[1741288586803,13.4866,143.54,143.53,0.033]
[1741288587185,14.50972957,143.54,143.53,0.033]
[1741288587383,14.79405271,143.54,143.53,0.033]
[1741288587999,20.0,143.51,143.47,0.033]
[1741288588222,21.02312957,143.51,143.47,0.033]
[1741288588517,7.25292314,143.5,143.47,0.033]
[1741288588890,20.0,143.48,143.47,0.033]
[1741288589085,7.54312957,143.49,143.47,0.033]
[1741288589912,0.28432314,143.48,143.47,0.033]
[1741288590508,6.9696,143.48,143.47,0.033]
[1741288590707,7.25392314,143.48,143.47,0.033]
[1741288591993,6.9696,143.48,143.47,0.033]
[1741288592519,7.54312957,143.49,143.42,0.033]
[1741288592520,88.52,143.49,143.42,0.14216157]
[1741288592697,6.9682,143.51,143.42,111.66798927]
[1741288593014,6.9682,143.51,143.44,0.14216157]
[1741288593224,7.99132957,143.51,143.44,0.14216157]
[1741288593725,0.28432314,143.5,143.4,6.52]
[1741288593928,107.41162957,143.51,143.41,29.4258277]
[1741288594101,107.41162957,143.51,143.42,7.11436157]
[1741288594305,107.41162957,143.51,143.42,36.54018927]
[1741288594525,106.3885,143.51,143.42,36.54018927]
[1741288594733,88.9682,143.51,143.44,0.14216157]
[1741288595035,82.0,143.51,143.45,29.56798927]
[1741288595207,6.52,143.53,143.47,29.4258277]
[1741288595409,6.52,143.53,143.48,0.14216157]
[1741288595629,13.4872,143.53,143.48,312.14216157]
[1741288595934,13.4872,143.53,143.47,0.14216157]
[1741288596807,82.0,143.52,143.47,0.14216157]
[1741288597234,82.0,143.52,143.46,1.6116]
[1741288597235,82.0,143.51,143.43,6.2159]
[1741288597431,82.0,143.5,143.43,6.2159]
[1741288597629,82.0,143.5,143.45,29.4258277]
[1741288597931,6.52,143.53,143.48,0.14216157]
[1741288598143,13.4874,143.53,143.48,0.14216157]
[1741288598345,6.52,143.53,143.48,0.14216157]
[1741288598532,13.4873,143.53,143.48,0.14216157]
[1741288598734,13.4873,143.53,143.47,312.14216157]
[1741288599248,0.033,143.51,143.49,29.56798927]
[1741288599447,0.033,143.51,143.5,29.56798927]
[1741288600343,0.033,143.51,143.5,0.14216157]
[1741288602251,0.033,143.51,143.5,312.14216157]
[1741288602949,0.033,143.51,143.5,341.56798927]
[1741288603446,0.033,143.51,143.5,312.14216157]
[1741288603658,0.033,143.51,143.5,312.0]
[1741288603856,0.033,143.51,143.5,312.14216157]
[1741288604161,0.033,143.51,143.5,319.11076157]
[1741288604754,0.033,143.51,143.5,36.53658927]
[1741288606238,0.033,143.51,143.5,0.14216157]
[1741288606755,0.033,143.51,143.5,29.56798927]
[1741288607828,0.033,143.51,143.5,348.53658927]
[1741288608231,0.033,143.51,143.45,6.971]
[1741288608453,0.033,143.51,143.44,113.0991277]
[1741288608658,0.033,143.51,143.45,29.4258277]
[1741288608831,0.033,143.51,143.47,29.4258277]
[1741288609030,0.033,143.51,143.48,0.14216157]
[1741288609427,0.033,143.51,143.44,83.6733]
[1741288609647,0.033,143.51,143.45,0.14216157]
[1741288609866,0.033,143.51,143.45,29.56798927]
[1741288610158,0.033,143.51,143.45,0.14216157]
[1741288610563,0.033,143.51,143.45,29.56798927]
[1741288611336,0.033,143.51,143.47,0.14216157]
[1741288611832,0.033,143.51,143.45,0.14216157]
[1741288612161,0.033,143.51,143.47,0.14216157]
[1741288612334,36.4497338,143.51,143.47,0.14216157]
[1741288612534,29.4486338,143.5,143.45,0.14216157]
[1741288612849,29.4486338,143.49,143.45,0.14216157]
[1741288613253,29.4486338,143.48,143.45,0.14216157]
[1741288613878,106.4214,143.51,143.45,0.14216157]
[1741288614072,29.4486338,143.48,143.44,0.17216157]
[1741288614382,6.97,143.47,143.44,0.17216157]
[1741288614884,29.4486338,143.49,143.45,0.14216157]
[1741288615056,88.9689,143.5,143.45,0.14216157]
[1741288615378,6.9689,143.5,143.45,0.14216157]
[1741288615877,0.033,143.51,143.45,111.69079537]
[1741288616169,0.033,143.51,143.47,0.14216157]
[1741288616376,0.033,143.51,143.47,7.11216157]
[1741288616863,29.4816338,143.51,143.47,0.14216157]
[1741288617062,29.4486338,143.5,143.47,0.14216157]
[1741288617478,29.4486338,143.49,143.47,0.14216157]
[1741288617781,29.4816338,143.51,143.47,0.14216157]
[1741288618082,0.033,143.51,143.47,7.11216157]
[1741288618262,0.033,143.51,143.47,319.11216157]
[1741288618455,29.4816338,143.51,143.47,319.11216157]
[1741288619073,29.4816338,143.51,143.47,312.14216157]
[1741288619979,29.4816338,143.51,143.47,0.14216157]
[1741288620175,29.4816338,143.51,143.47,82.24216157]
[1741288620363,29.4816338,143.51,143.47,89.21216157]
[1741288620564,29.4486338,143.5,143.44,226.9013]
[1741288620773,29.4486338,143.5,143.44,256.3499338]
[1741288620985,29.4486338,143.5,143.45,0.14216157]
[1741288621293,7.0013,143.51,143.45,0.14216157]
[1741288621294,29.4486338,143.47,143.45,0.14216157]
[1741288621661,29.4486338,143.48,143.45,0.14216157]
[1741288622669,24.4216,143.51,143.45,0.14216157]
[1741288623077,29.4486338,143.48,143.45,312.14216157]
[1741288623389,29.4486338,143.47,143.45,312.14216157]
[1741288623592,24.4216,143.51,143.45,312.14216157]
[1741288623758,24.4216,143.51,143.45,319.11316157]
[1741288623759,29.4486338,143.49,143.45,319.11316157]
[1741288623962,29.4486338,143.5,143.45,319.11316157]
[1741288624191,29.4486338,143.49,143.45,312.14216157]
[1741288624396,29.4486338,143.48,143.45,312.14216157]
[1741288624569,18.41655764,143.48,143.45,312.14216157]
[1741288624768,6.97,143.47,143.45,312.14216157]
[1741288624968,25.38625764,143.48,143.45,312.14216157]
[1741288625685,18.41655764,143.48,143.45,312.14216157]
[1741288625990,17.4533,143.51,143.45,401.21316157]
[1741288625991,0.033,143.51,143.45,401.21316157]
[1741288626195,18.41655764,143.5,143.45,82.24216157]
[1741288626373,18.41655764,143.49,143.45,82.24216157]
[1741288627182,18.41655764,143.48,143.45,82.24216157]
[1741288627490,18.41655764,143.46,143.44,0.03]
[1741288627673,18.41655764,143.47,143.44,0.03]
[1741288627876,18.41655764,143.48,143.45,0.14216157]
[1741288628994,18.41655764,143.47,143.44,0.03]
[1741288629294,18.41655764,143.46,143.44,0.03]
[1741288629603,18.41655764,143.45,143.44,0.03]
[1741288631096,18.41655764,143.46,143.44,0.03]
[1741288631270,18.41655764,143.45,143.44,0.03]
[1741288631692,25.38755764,143.45,143.44,0.03]
[1741288632393,18.41655764,143.45,143.44,0.03]
[1741288632591,82.0,143.47,143.44,0.03]
[1741288632782,18.41655764,143.45,143.44,0.03]
[1741288633193,25.38755764,143.45,143.44,0.03]
[1741288633975,18.41655764,143.45,143.44,0.03]
[1741288634168,82.0,143.47,143.44,0.03]
[1741288634397,100.41655764,143.47,143.44,0.03]
[1741288634605,18.41655764,143.46,143.44,0.03]
[1741288634995,100.41655764,143.47,143.44,0.03]
[1741288635375,18.41655764,143.46,143.44,0.03]
[1741288635580,18.41655764,143.45,143.44,0.03]
[1741288636293,18.41655764,143.46,143.44,0.17216157]
[1741288636595,100.41655764,143.47,143.44,0.17216157]
[1741288636898,18.41655764,143.45,143.44,0.03]
[1741288637300,100.41655764,143.45,143.44,0.03]
[1741288637483,107.38755764,143.45,143.44,0.03]
[1741288637685,108.41068721,143.45,143.44,0.03]
[1741288638073,45.11156799,143.45,143.44,0.03]
[1741288638290,0.28432314,143.44,143.41,0.03]
[1741288638491,18.41655764,143.42,143.41,0.03]
[1741288639496,49.29095764,143.42,143.38,0.03]
[1741288639800,18.41655764,143.39,143.38,0.03]
[1741288641898,18.41655764,143.4,143.38,0.03]
[1741288642278,18.41655764,143.39,143.38,0.03]
[1741288643688,18.41655764,143.4,143.38,0.03]
[1741288644377,18.41655764,143.39,143.38,0.03]
[1741288644978,18.41655764,143.4,143.39,0.14216157]
[1741288645297,18.41655764,143.4,143.38,0.03]
[1741288645600,18.41655764,143.4,143.38,0.17216157]
[1741288648316,18.41655764,143.4,143.39,0.14216157]
[1741288648489,18.41655764,143.41,143.39,0.14216157]
[1741288648683,18.41655764,143.42,143.39,0.14216157]
[1741288649411,18.41655764,143.41,143.38,0.17216157]
[1741288649712,18.41655764,143.41,143.38,7.14656157]
[1741288649916,18.41655764,143.42,143.38,7.14656157]
[1741288650289,18.41655764,143.41,143.38,7.14656157]
[1741288650690,18.41655764,143.41,143.38,0.03]
[1741288651517,18.41655764,143.41,143.38,0.17216157]
[1741288651820,18.41655764,143.41,143.38,312.17216157]
[1741288652203,18.41655764,143.41,143.38,319.14656157]
[1741288652588,18.41655764,143.41,143.38,312.17216157]
[1741288653511,18.41655764,143.41,143.38,319.14646157]
[1741288653715,18.41655764,143.41,143.38,312.17216157]
[1741288654612,82.0,143.44,143.39,0.14216157]
[1741288654813,18.41655764,143.42,143.39,0.14216157]
[1741288655020,18.41655764,143.4,143.39,0.14216157]
[1741288655189,18.41655764,143.4,143.38,0.03]
[1741288655520,88.9721,143.43,143.38,0.03]
[1741288655814,18.41655764,143.42,143.38,0.03]
[1741288656200,18.41655764,143.41,143.38,0.03]
[1741288657792,18.41655764,143.41,143.38,312.03]
[1741288657989,100.41655764,143.43,143.39,0.14216157]
[1741288658818,18.41655764,143.42,143.39,0.14216157]
[1741288659333,18.41655764,143.42,143.39,7.11586157]
[1741288659532,82.0,143.43,143.39,7.11586157]
[1741288659742,82.0,143.43,143.39,25.53241921]
[1741288659910,0.033,143.45,143.41,0.14216157]
[1741288660715,0.033,143.43,143.42,18.55871921]
[1741288660926,0.033,143.43,143.42,0.14216157]
[1741288661440,0.033,143.43,143.42,7.11466157]
[1741288662042,0.033,143.43,143.42,7.39898471]
[1741288662216,0.033,143.43,143.42,107.91554235]
[1741288662622,0.033,143.43,143.42,394.24216157]
[1741288663144,0.033,143.43,143.42,401.21466157]
[1741288663642,18.44955764,143.43,143.39,6.9739]
[1741288664026,18.44955764,143.43,143.4,0.14216157]
[1741288664630,18.44955764,143.43,143.39,0.14216157]
[1741288665137,0.033,143.43,143.39,0.14216157]
[1741288665343,18.44955764,143.43,143.38,82.13]
[1741288665641,18.41655764,143.42,143.39,0.14216157]
[1741288666513,18.44955764,143.43,143.39,0.14216157]
[1741288666735,0.033,143.43,143.39,330.55871921]
[1741288666929,0.033,143.43,143.41,0.14216157]
[1741288667231,0.033,143.43,143.41,82.24216157]
[1741288667819,0.033,143.43,143.41,89.21516157]
[1741288668030,0.033,143.43,143.41,82.24216157]
[1741288668831,0.033,143.43,143.41,89.21506157]
[1741288669468,0.033,143.43,143.42,35.40344502]
[1741288669745,0.033,143.43,143.42,15.23856157]
[1741288670456,0.033,143.43,143.42,8.26606157]
[1741288670631,0.033,143.43,143.42,6.66216157]
[1741288671148,0.033,143.43,143.42,13.63466157]
[1741288672416,0.033,143.43,143.42,318.52]
[1741288672617,0.033,143.43,143.42,325.4925]
[1741288672914,0.033,143.43,143.42,325.63466157]
[1741288675071,0.033,143.43,143.42,318.66216157]
[1741288675859,0.033,143.43,143.42,325.63466157]
[1741288676170,0.033,143.43,143.42,407.73466157]
[1741288677356,0.033,143.43,143.42,426.43554235]
[1741288678171,0.033,143.43,143.42,114.43554235]
[1741288678374,0.033,143.43,143.42,96.01898471]
[1741288678866,0.033,143.43,143.42,88.76216157]
[1741288679073,0.033,143.43,143.42,82.24216157]
[1741288679377,0.033,143.43,143.39,13.4939]
[1741288679557,0.033,143.43,143.4,0.14216157]
[1741288679749,0.033,143.43,143.42,0.14216157]
[1741288680356,0.033,143.43,143.41,0.14216157]
[1741288681177,18.41655764,143.42,143.4,82.1]
[1741288681577,0.033,143.43,143.41,0.14216157]
[1741288681875,0.033,143.43,143.42,0.14216157]
[1741288683775,0.033,143.43,143.42,7.11466157]
[1741288684173,0.033,143.43,143.42,312.14216157]
[1741288684363,0.033,143.43,143.42,319.11466157]
[1741288684882,0.033,143.43,143.42,312.14216157]
[1741288685064,0.033,143.43,143.42,0.14216157]
[1741288685756,0.033,143.43,143.42,7.11466157]
[1741288687461,0.033,143.43,143.42,0.14216157]
[1741288687967,0.033,143.43,143.42,312.14216157]
[1741288688769,18.44955764,143.43,143.41,6.52]
[1741288688962,18.41655764,143.42,143.38,228.5505]
[1741288689180,18.44955764,143.43,143.39,0.14216157]
[1741288689368,0.033,143.43,143.39,0.14216157]
[1741288689569,0.033,143.43,143.41,0.03]
[1741288690792,18.44955764,143.43,143.41,0.03]
[1741288691496,0.033,143.43,143.41,0.03]
[1741288691864,0.033,143.43,143.42,0.14216157]
[1741288692491,0.033,143.43,143.41,0.03]
[1741288692679,18.44955764,143.43,143.41,0.03]
[1741288694683,0.033,143.43,143.41,0.03]
[1741288695087,0.033,143.43,143.41,18.58871921]
[1741288695290,0.033,143.43,143.41,330.58871921]
[1741288695678,0.033,143.43,143.42,18.55871921]
[1741288695880,0.033,143.43,143.42,0.14216157]
[1741288696122,0.033,143.43,143.42,7.11466157]
[1741288696406,0.033,143.43,143.42,0.14216157]
[1741288697295,0.033,143.43,143.42,7.11466157]
[1741288698399,0.033,143.43,143.42,18.90809625]
[1741288698895,0.033,143.43,143.42,319.11466157]
[1741288699313,0.033,143.43,143.42,312.14216157]
[1741288701112,0.033,143.43,143.42,0.14216157]
[1741288703889,0.033,143.43,143.42,319.11466157]
[1741288704089,0.033,143.43,143.42,312.14216157]
[1741288704390,0.033,143.43,143.42,0.14216157]
[1741288704699,0.033,143.43,143.41,0.03]
[1741288706119,11.82643468,143.43,143.41,0.03]
[1741288706305,0.033,143.43,143.41,0.03]
[1741288709913,0.033,143.43,143.42,11.93559625]
[1741288710221,0.033,143.43,143.42,0.14216157]
[1741288710722,11.82643468,143.43,143.41,0.03]
[1741288710928,0.033,143.43,143.41,0.03]
[1741288712807,0.033,143.43,143.42,0.14216157]
[1741288713730,0.033,143.43,143.42,7.11466157]
[1741288714595,0.033,143.43,143.42,19.19241939]
[1741288715496,0.033,143.43,143.42,239.09241939]
[1741288715712,0.033,143.43,143.42,220.04216157]
[1741288716229,0.033,143.43,143.42,532.04216157]
[1741288716401,0.033,143.43,143.42,512.48525353]
[1741288716814,11.82643468,143.43,143.41,0.03]
[1741288717019,11.79343468,143.42,143.41,0.03]
[1741288717823,18.76593468,143.42,143.41,0.03]
[1741288720639,100.76593468,143.42,143.41,0.03]
[1741288724941,93.79343468,143.42,143.41,0.03]
[1741288725448,100.76593468,143.42,143.41,0.03]
[1741288725820,93.79343468,143.42,143.41,0.03]
[1741288726018,100.76593468,143.42,143.41,0.03]
[1741288726520,18.76593468,143.42,143.41,0.03]
[1741288728719,19.78906425,143.42,143.41,0.03]
[1741288728923,20.07338739,143.42,143.41,0.0001]
[1741288729235,0.28432314,143.4,143.38,0.03]
[1741288729424,82.0,143.39,143.38,0.03]
[1741288729617,93.79343468,143.39,143.38,0.03]
[1741288730626,100.76733468,143.39,143.38,0.03]
[1741288730828,19.05165782,143.39,143.38,0.03]
[1741288731032,18.76733468,143.39,143.38,0.03]
[1741288732136,93.79343468,143.4,143.38,0.03]
[1741288733665,100.76703468,143.4,143.38,0.03]
[1741288734030,11.79343468,143.41,143.38,0.03]
[1741288734356,18.76643468,143.41,143.38,0.03]
[1741288734540,11.79343468,143.4,143.38,0.03]
[1741288734941,100.76613468,143.42,143.38,0.03]
[1741288735466,18.76613468,143.42,143.38,0.03]
[1741288735638,0.033,143.43,143.39,11.79343468]
[1741288735842,0.033,143.43,143.41,0.14216157]
[1741288736451,0.033,143.42,143.41,312.14216157]
[1741288737137,0.033,143.42,143.4,0.14216157]
[1741288738037,0.033,143.42,143.4,11.93559625]
[1741288738241,0.033,143.42,143.4,0.14216157]
[1741288740463,18.45716672,143.42,143.4,0.14216157]
[1741288741367,18.45716672,143.42,143.38,312.03]
[1741288741577,18.42416672,143.4,143.38,0.03]
[1741288741738,0.033,143.42,143.38,0.03]
[1741288741739,18.42416672,143.39,143.38,0.03]
[1741288742666,88.973,143.41,143.38,0.03]
[1741288742667,18.42416672,143.4,143.38,0.03]
[1741288743847,100.42416672,143.41,143.38,0.03]
[1741288744045,0.033,143.42,143.39,0.14216157]
[1741288744448,0.033,143.42,143.39,312.14216157]
[1741288744846,0.033,143.42,143.39,332.17692829]
[1741288745146,0.033,143.42,143.41,0.14216157]
[1741288745539,0.033,143.42,143.4,0.14216157]
[1741288745767,18.45716672,143.42,143.4,0.14216157]
[1741288746158,25.42976672,143.42,143.4,0.14216157]
[1741288747358,0.033,143.42,143.4,0.14216157]
[1741288747869,0.033,143.42,143.4,7.11556157]
[1741288748072,0.033,143.42,143.41,18.56632829]
[1741288748270,0.033,143.42,143.41,20.09852829]
[1741288748459,0.033,143.42,143.41,0.14216157]
[1741288749375,0.033,143.42,143.41,312.14216157]
[1741288750348,0.033,143.42,143.41,312.0]
[1741288750582,18.45716672,143.42,143.38,0.03]
[1741288750771,18.42416672,143.39,143.38,0.03]
[1741288750973,18.42416672,143.4,143.38,0.03]
[1741288751879,18.42416672,143.39,143.38,0.03]
[1741288752845,7.85932314,143.38,143.32,0.03]
[1741288753045,18.42416672,143.33,143.32,0.03]
[1741288753249,18.42416672,143.33,143.27,0.03]
[1741288753471,18.42416672,143.29,143.27,0.03]
[1741288754368,18.42416672,143.28,143.27,0.03]
[1741288754672,25.40306672,143.29,143.27,0.03]
[1741288755263,18.42416672,143.28,143.27,0.03]
[1741288758279,26.42659629,143.28,143.27,0.03]
[1741288758489,26.71091943,143.28,143.27,0.03]
[1741288760283,19.44729629,143.28,143.27,0.03]
[1741288761187,18.42416672,143.28,143.27,0.03]
[1741288761489,18.42416672,143.29,143.27,0.03]
[1741288761882,18.42416672,143.31,143.27,0.03]
[1741288762083,18.42416672,143.3,143.27,0.03]
[1741288762597,18.42416672,143.31,143.27,0.03]
[1741288763677,18.42416672,143.3,143.27,0.03]
[1741288763883,18.42416672,143.29,143.27,0.03]
[1741288764081,18.42416672,143.28,143.27,0.03]
[1741288765487,18.42416672,143.29,143.27,0.03]
[1741288766187,18.42416672,143.28,143.27,0.03]
[1741288766770,18.42416672,143.29,143.27,0.03]
[1741288766969,18.42416672,143.28,143.27,0.03]
[1741288767995,25.68778986,143.28,143.27,0.03]
[1741288768186,33.23091943,143.28,143.27,0.03]
[1741288770002,36.73917578,143.28,143.27,0.0001]
[1741288770204,36.73917578,143.28,143.26,0.0001]
[1741288770383,36.73917578,143.28,143.24,0.03]
[1741288770384,20.0,143.25,143.24,0.0001]
[1741288770582,39.44729629,143.25,143.24,0.0001]
[1741288771490,39.73161943,143.25,143.24,0.0001]
[1741288771879,39.44729629,143.25,143.24,0.0001]
[1741288772088,39.73161943,143.25,143.24,0.0001]
[1741288772269,46.71241943,143.25,143.24,0.0001]
[1741288773788,6.9801,143.27,143.24,0.0001]
[1741288773982,18.42416672,143.26,143.24,0.0001]
[1741288774195,25.40456672,143.26,143.24,0.0001]
[1741288774400,18.42416672,143.25,143.24,0.0001]
[1741288774787,18.42416672,143.26,143.24,0.0001]
[1741288775310,82.0,143.27,143.24,0.0001]
[1741288775980,100.42416672,143.27,143.24,0.0001]
[1741288776787,82.0,143.27,143.24,0.0001]
[1741288779311,18.42416672,143.29,143.24,0.14226157]
[1741288779495,18.42416672,143.28,143.24,0.14226157]
[1741288779700,83.02312957,143.31,143.24,0.14226157]
[1741288779899,18.42416672,143.29,143.24,0.14226157]
[1741288780411,25.40306672,143.29,143.24,0.14226157]
[1741288781007,25.40306672,143.29,143.24,18.56642829]
[1741288781384,25.40266672,143.3,143.24,25.54752829]
[1741288781790,100.42416672,143.31,143.26,0.14216157]
[1741288781995,88.9779,143.31,143.26,18.56632829]
[1741288782414,107.40206672,143.31,143.26,0.14216157]
[1741288782993,18.42416672,143.3,143.26,0.14216157]
[1741288783715,107.40206672,143.31,143.26,7.12236157]
[1741288784011,107.40206672,143.31,143.26,18.56632829]
[1741288784012,107.40216672,143.31,143.26,18.56632829]
[1741288784215,18.42416672,143.3,143.26,312.14216157]
[1741288785203,107.43516672,143.31,143.26,312.14216157]
[1741288785404,18.42416672,143.3,143.26,312.14216157]
[1741288785602,107.43516672,143.31,143.26,319.12236157]
[1741288785809,89.011,143.31,143.26,319.12236157]
[1741288786022,107.43516672,143.31,143.26,319.12236157]
[1741288786507,18.42416672,143.3,143.26,312.14216157]
[1741288786708,107.43516672,143.31,143.26,319.12236157]
[1741288787208,82.033,143.31,143.26,25.54652829]
[1741288787412,82.033,143.31,143.28,0.14216157]
[1741288787413,0.033,143.31,143.28,0.14216157]
[1741288788119,0.033,143.31,143.27,0.14216157]
[1741288789326,18.42416672,143.29,143.25,1.5265]
[1741288789518,18.42416672,143.29,143.26,0.14216157]
[1741288789723,82.0,143.3,143.26,0.14216157]
[1741288789893,100.42416672,143.3,143.26,0.14216157]
[1741288791016,107.40266672,143.3,143.26,0.14216157]
[1741288791895,18.42416672,143.29,143.26,0.14216157]
[1741288792524,6.9793,143.28,143.26,0.14216157]
[1741288792725,0.033,143.31,143.26,0.14216157]
[1741288792910,6.9785,143.3,143.26,0.14216157]
[1741288793110,6.9785,143.3,143.26,18.56632829]
[1741288793408,6.9785,143.3,143.26,0.14216157]
[1741288793933,25.40266672,143.3,143.26,0.14216157]
[1741288794634,6.9785,143.3,143.26,0.14216157]
[1741288794924,6.9785,143.3,143.26,312.14216157]
[1741288797112,0.033,143.31,143.26,312.14216157]
[1741288797314,7.011,143.31,143.26,319.12236157]
[1741288797535,7.011,143.31,143.26,312.14216157]
[1741288797735,7.011,143.31,143.26,0.14216157]
[1741288797910,25.43516672,143.31,143.26,62.68525353]
[1741288798732,0.033,143.31,143.28,18.56632829]
[1741288799333,0.033,143.31,143.28,0.14216157]
[1741288799520,0.033,143.31,143.28,18.56632829]
[1741288799941,0.033,143.31,143.3,18.56632829]
[1741288800514,0.033,143.31,143.3,0.14216157]
[1741288800744,0.033,143.31,143.3,312.14216157]
[1741288801244,0.033,143.31,143.3,319.12046157]
[1741288801541,0.033,143.31,143.3,312.14216157]
[1741288801747,0.033,143.31,143.3,319.12046157]
[1741288802047,0.033,143.32,143.3,89.89664339]
[1741288802249,0.033,143.32,143.31,20.31537069]
[1741288802416,0.033,143.32,143.31,81.10942025]
[1741288802615,0.033,143.32,143.31,62.68525353]
[1741288803952,18.45716672,143.32,143.31,0.14216157]
[1741288804452,18.45716672,143.32,143.29,62.54309196]
[1741288804744,18.42416672,143.3,143.29,62.54309196]
[1741288804944,25.40246672,143.3,143.29,62.68525353]
[1741288805150,25.40246672,143.3,143.26,1.5684]
[1741288805448,18.42416672,143.27,143.24,0.0001]
[1741288805747,18.42416672,143.26,143.24,0.14226157]
[1741288805954,18.42416672,143.27,143.24,0.14226157]
[1741288806116,18.42416672,143.28,143.24,0.14226157]
[1741288806322,88.978,143.31,143.24,25.54742829]
[1741288806521,18.42416672,143.3,143.24,88.09052025]
[1741288806943,25.40276672,143.3,143.24,88.09052025]
[1741288807143,18.42416672,143.29,143.24,69.66635353]
[1741288807341,18.42416672,143.28,143.24,62.68535353]
[1741288807849,18.42416672,143.27,143.24,62.68535353]
[1741288808767,18.42416672,143.26,143.24,62.54319196]
[1741288808968,25.40456672,143.26,143.25,0.14216157]
[1741288809141,18.46902957,143.3,143.25,0.14216157]
[1741288809349,18.42416672,143.27,143.25,0.14216157]
[1741288809751,18.42416672,143.28,143.25,0.14216157]
[1741288810258,18.42416672,143.27,143.25,0.14216157]
[1741288811459,25.40406672,143.27,143.25,0.14216157]
[1741288811960,18.42416672,143.27,143.25,0.14216157]
[1741288812175,6.9783,143.3,143.25,0.14216157]
[1741288812362,18.42416672,143.3,143.25,7.12276157]
[1741288813469,18.42416672,143.3,143.25,69.66585353]
[1741288813772,18.45716672,143.31,143.27,0.14216157]
[1741288813946,0.033,143.31,143.27,81.10942025]
[1741288814141,0.033,143.31,143.27,62.68525353]
[1741288814451,25.43506672,143.31,143.27,62.68525353]
[1741288814667,18.42416672,143.3,143.27,374.68525353]
[1741288814862,0.033,143.31,143.27,374.68525353]
[1741288815438,18.45716672,143.31,143.27,374.68525353]